{"text_format":"1","workbook":"xlsx","n_sheets":2,"sheets":["RENUUO АОСР","ACT LOG"],"not_rendered":{"charts":0,"images":0,"macros":1,"external_links":0,"defined_names":2,"comments":0,"pivot_tables":0},"unopened":[],"bounds":{"document_bytes":16777216,"sheet_cells":100000,"rows_first":2000,"rows_last":500,"rows_between":2000,"halvings":0,"cell_chars":16384,"cell_head_chars":4096},"cells_cut":0,"cells_raw":0,"read":"whole","date_system":"1900"}

{"sheet":"RENUUO АОСР","index":0,"n_rows":80,"n_cols":37,"rows_kept":80,"cut":false,"hidden":false,"merged":[[77,3,77,14],[80,3,80,14],[71,3,71,14],[73,3,73,14],[74,3,74,14],[76,3,76,14],[72,12,72,14],[75,12,75,14],[78,12,78,14],[79,3,79,14],[53,3,53,14],[69,16,69,21],[70,3,70,14],[57,3,57,14],[58,3,58,14],[62,3,62,14],[64,3,64,14],[63,12,63,14],[66,12,66,14],[69,12,69,14],[65,3,65,14],[67,3,67,14],[68,3,68,14],[59,3,59,14],[23,3,23,14],[24,3,24,14],[11,3,11,14],[0,3,0,14],[1,3,1,14],[2,3,2,14],[3,3,3,14],[4,3,4,14],[5,3,5,14],[6,3,6,14],[7,3,7,14],[8,3,8,14],[9,3,9,14],[10,3,10,14],[18,12,18,14],[20,3,20,14],[21,3,21,14],[22,3,22,14],[12,3,12,14],[13,3,13,14],[14,3,14,14],[15,3,15,14],[16,3,16,14],[18,3,18,7],[25,3,25,14],[26,3,26,14],[27,3,27,14],[28,3,28,14],[29,3,29,14],[30,3,30,14],[31,3,31,14],[32,3,32,14],[33,3,33,14],[34,3,34,14],[36,3,36,14],[48,3,48,14],[39,3,39,14],[40,3,40,14],[41,3,41,14],[42,3,42,14],[44,3,44,14],[45,3,45,14],[46,3,46,14],[47,3,47,14],[38,7,38,14],[49,3,49,14],[51,3,51,14],[52,3,52,14],[37,3,37,6],[37,7,37,14]]}
[null,null,null,"Объект капитального строительства:"]
["ZONE",{"$f":"IFERROR((VLOOKUP(Q2,'ACT LOG'!B2:E64970,4,0)),\"\")","v":8},null,{"$f":"\"«Комплекс по производству поливинилхлорида (ПВХ) мощностью 330 тыс. т/год». 607650, Нижегородская обл., Кстовский район, г. Кстово, промзона. Зона \"&B2&\". Сеть дождевой канализации (CWU/WWGU/WWTU). Титул 930-7.\"","v":"«Комплекс по производству поливинилхлорида (ПВХ) мощностью 330 тыс. т/год». 607650, Нижегородская обл., Кстовский район, г. Кстово, промзона. Зона 8. Сеть дождевой канализации (CWU/WWGU/WWTU). Титул 930-7."},null,null,null,null,null,null,null,null,null,null,null,null,28,null,"ctrl + R to print by 2 copies"]
["ACT SEQ",{"$f":"VLOOKUP(Q2,'ACT LOG'!B:F,5,0)","v":"DOP-1"},null,"(наименование,  почтовый  или  строительный  адрес  объекта  капитального строительства)"]
["ACT NO",{"$f":"\"№RENUUO-1410-ZONE\"&B2&\"-\"&B3","v":"№RENUUO-1410-ZONE8-DOP-1"},null,"Застройщик или заказчик:"]
["ACT DATE",{"$f":"VLOOKUP(Q2,'ACT LOG'!B:G,6,0)","v":41548},null,"ООО «РусВинил», Свидетельство о гос. регистрации серия 52 №003606845 от 11.10.2007 г., ОГРН 1075262019766, ИНН 5262218620, 607650, Нижегородская область,  Кстовский район, г. Кстово, промзона, тел. +7 831 463 69 00, Факс: + 7 831 463 69 01",null,null,null,null,null,null,null,null,null,null,null,null,null,null,null,null,null,null,null,null,"представитель заказчика"]
[null,null,null,"(наименование, номер и дата выдачи свидетельства о государственной регистрации, ОГРН, ИНН, почтовые реквизиты, телефон/факс - для юридических лиц)",null,null,null,null,null,null,null,null,null,null,null,null,null,null,null,null,null,null,null,"действующая комиссия"]
[null,null,null,"Лицо, осуществляющее строительство:",null,null,null,null,null,null,null,null,null,null,null,null,null,null,null,null,null,null,null,"Зон.","Должность","Ф.И.О.","Приказ",null,null,null,null,null,null,"старые"]
[null,null,null,"ЗАО «Ренейссанс Констракшн». Свидетельство о гос. регистрации серия 77 №00540119 от 15.10.2002 г., ОГРН 1027739384309, ИНН 7708185129, 107078, г. Москва, Орликов переулок, д. 6, тел. +7(495)787-59-20, факс +7(495)365-366.",null,null,null,null,null,null,null,null,null,null,null,null,null,null,null,null,null,null,null,1,"инженер по взаимодействию с подрядными организациями ООО \"РусВинил\"","Дульцева Т.А.","приказ №206-ОС от 09.11.12г.",null,null,null,null,null,null,1,"ведущий инженер по общестроительным работам ООО \"РусВинил\"","Докторов И.М.","приказ №175-ос от 20.09.2012 г."]
[null,null,null,"(наименование, номер и дата выдачи свидетельства о государственной регистрации, ОГРН, ИНН, почтовые реквизиты, телефон/факс - для юридических лиц)",null,null,null,null,null,null,null,null,null,null,null,null,null,null,null,null,null,null,null,2,"ведущий инженер по общестроительным работам ООО \"РусВинил\"","Докторов И.М.","приказ №175-ос от 20.09.2012 г.",null,null,null,null,null,null,2,"Инженер по подземным трубопроводам ООО \"РусВинил\"","Рахмангулов В.Г.","приказ №224-ос от 27.11.2012г."]
[null,null,null,"Лицо, осуществляющее подготовку проектной документации:",null,null,null,null,null,null,null,null,null,null,null,null,null,null,null,null,null,null,null,3,"ведущий инженер по общестроительным работам ООО \"РусВинил\"","Докторов И.М.","приказ №175-ос от 20.09.2012 г.",null,null,null,null,null,null,3,"инженер по общестроительным работам ООО \"РусВинил\"","Милованов Н.С.","приказ №33/1-ОС от 27.02.2013 г."]
[null,null,null,"ЗАО «Текнип Рус», Свидетельство о гос. регистрации серия 78 №008218175 от 11.04.2011 г., ОГРН 1027810258882, ИНН 7810913731, 196084, г. Санкт-Петербург, Лиговский проспект, д. 264, корпус А, тел. +7(812)495-48-70.",null,null,null,null,null,null,null,null,null,null,null,null,null,null,null,null,null,null,null,4.8,"ведущий инженер по общестроительным работам ООО \"РусВинил\"","Докторов И.М.","приказ №175-ос от 20.09.2012 г.",null,null,null,null,null,null,4.8,"ведущий инженер по общестроительным работам ООО \"РусВинил\"","Докторов И.М.","приказ №175-ос от 20.09.2012 г."]
[null,null,null,"(наименование, номер и дата выдачи свидетельства о государственной регистрации, ОГРН, ИНН, почтовые реквизиты, телефон/факс - для юридических лиц)",null,null,null,null,null,null,null,null,null,null,null,null,null,null,null,null,null,null,null,5,"ведущий инженер по общестроительным работам ООО \"РусВинил\"","Докторов И.М.","приказ №175-ос от 20.09.2012 г.",null,null,null,null,null,null,5,"Инженер по подземным трубопроводам ООО \"РусВинил\"","Рахмангулов В.Г.","приказ №224-ос от 27.11.2012г."]
[null,null,null,"Лицо, осуществляющее строительство, выполнившее работы по разбивке осей объекта капитального строительства на местности:",null,null,null,null,null,null,null,null,null,null,null,null,null,null,null,null,null,null,null,6,"ведущий инженер по общестроительным работам ООО \"РусВинил\"","Докторов И.М.","приказ №175-ос от 20.09.2012 г.",null,null,null,null,null,null,6,"ведущий инженер по общестроительным работам ООО \"РусВинил\"","Докторов И.М.","приказ №175-ос от 20.09.2012 г."]
[null,null,null,"ЗАО «Ренейссанс Констракшн». Свидетельство о гос. регистрации серия 77 №00540119 от 15.10.2002 г., ОГРН 1027739384309, ИНН 7708185129, 107078, г. Москва, Орликов переулок, д. 6, тел. +7(495)787-59-20, факс +7(495)365-366.",null,null,null,null,null,null,null,null,null,null,null,null,null,null,null,null,null,null,null,7,"ведущий инженер по общестроительным работам ООО \"РусВинил\"","Докторов И.М.","приказ №175-ос от 20.09.2012 г.",null,null,null,null,null,null,7,"Инженер по подземным трубопроводам ООО \"РусВинил\"","Рахмангулов В.Г.","приказ №224-ос от 27.11.2012г."]
[null,null,null,"(наименование, номер и дата выдачи свидетельства о государственной регистрации, ОГРН, ИНН, почтовые реквизиты, телефон/факс - для юридических лиц)",null,null,null,null,null,null,null,null,null,null,null,null,null,null,null,null,null,null,null,8,"ведущий инженер по общестроительным работам ООО \"РусВинил\"","Докторов И.М.","приказ №175-ос от 20.09.2012 г.",null,null,null,null,null,null,8,"Инженер по подземным трубопроводам ООО \"РусВинил\"","Рахмангулов В.Г.","приказ №224-ос от 27.11.2012г."]
[null,null,null,null,null,null,null,null,null,null,null,null,null,null,null,null,null,null,null,null,null,null,null,9,"ведущий инженер по общестроительным работам ООО \"РусВинил\"","Докторов И.М.","приказ №175-ос от 20.09.2012 г.",null,null,null,null,null,null,9,"Инженер по подземным трубопроводам ООО \"РусВинил\"","Рахмангулов В.Г.","приказ №224-ос от 27.11.2012г."]
[null,null,null,"АКТ\nразбивки осей объекта капитального строительства на местности",null,null,null,null,null,null,null,null,null,null,null,null,null,null,null,null,null,null,null,8.4,"ведущий инженер по общестроительным работам ООО \"РусВинил\"","Докторов И.М.","приказ №175-ос от 20.09.2012 г.",null,null,null,null,null,null,8.4,"ведущий инженер по общестроительным работам ООО \"РусВинил\"","Докторов И.М.","приказ №175-ос от 20.09.2012 г."]
[null,null,null,null,null,null,null,null,null,null,null,null,null,null,null,null,null,null,null,null,null,null,null,4,"ведущий инженер по общестроительным работам ООО \"РусВинил\"","Докторов И.М.","приказ №175-ос от 20.09.2012 г.",null,null,null,null,null,null,4,"ведущий инженер по общестроительным работам ООО \"РусВинил\"","Докторов И.М.","приказ №175-ос от 20.09.2012 г."]
[null,null,null,{"$f":"B4","v":"№RENUUO-1410-ZONE8-DOP-1"},null,null,null,null,null,null,null,null,{"$f":"B5","v":"2013-10-01"},null,null,null,null,null,null,null,null,null,null,6.7,"ведущий инженер по общестроительным работам ООО \"РусВинил\"","Докторов И.М.","приказ №175-ос от 20.09.2012 г.",null,null,null,null,null,null,6.7,"Инженер по подземным трубопроводам ООО \"РусВинил\"","Рахмангулов В.Г.","приказ №224-ос от 27.11.2012г."]
[null,null,null,null,null,null,null,null,null,null,null,null,null,null,null,null,null,null,null,null,null,null,null,2.6,"ведущий инженер по общестроительным работам ООО \"РусВинил\"","Докторов И.М.","приказ №175-ос от 20.09.2012 г.",null,null,null,null,null,null,2.6,"инженер по подземным трубопроводам ООО \"РусВинил\"","Рахмангулов В.Г.","приказ №224-ос от 27.11.2012г."]
[null,null,null,"Представитель застройщика или заказчика:",null,null,null,null,null,null,null,null,null,null,null,null,null,null,null,null,null,null,null,2.2999999999999998,"ведущий инженер по общестроительным работам ООО \"РусВинил\"","Докторов И.М.","приказ №175-ос от 20.09.2012 г.",null,null,null,null,null,null,1.2,"ведущий инженер по общестроительным работам ООО \"РусВинил\"","Докторов И.М.","приказ №175-ос от 20.09.2012 г."]
[1,null,null,{"$f":"CONCATENATE((VLOOKUP(B2,X8:Z25,2,0)),\" \",(VLOOKUP(B2,X8:Z25,3,0)),\", \",(VLOOKUP(B2,X8:AA25,4,0)))","v":"ведущий инженер по общестроительным работам ООО \"РусВинил\" Докторов И.М., приказ №175-ос от 20.09.2012 г."},null,null,null,null,null,null,null,null,null,null,null,null,null,null,null,null,null,null,null,6.8,"ведущий инженер по общестроительным работам ООО \"РусВинил\"","Докторов И.М.","приказ №175-ос от 20.09.2012 г."]
[2,null,null,"(должность, фамилия, инициалы, реквизиты документа о представительстве)",null,null,null,null,null,null,null,null,null,null,null,null,null,null,null,null,null,null,null,1.2,"инженер по взаимодействию с подрядными организациями ООО \"РусВинил\"","Дульцева Т.А.","приказ №206-ОС от 09.11.12г."]
[3,null,null,"Представитель лица, осуществляющего строительство:"]
[4,null,null,"прораб ЗАО «Ренейссанс Констракшн» Лебедев Е.М., доверенность №02/04/12 от 02.04.2012 г."]
[5,null,null,"(должность, фамилия, инициалы, реквизиты документа о представительстве)"]
[6,null,null,"Представитель лица, осуществляющего строительство, по вопросам строительного контроля:"]
[7,null,null,"инженер по качеству ЗАО «Ренейссанс Констракшн» Сон Тунч, приказ №20 от 25.04.2012 г."]
[8,null,null,"(должность, фамилия, инициалы, реквизиты документа о представительстве)"]
[9,null,null,"Представитель лица, осуществляющего подготовку проектной документации:",null,null,null,null,null,null,null,null,null,null,null,null,null,"представитель проектировщика:"]
[null,null,null,{"$f":"IF(B5<41488,R31,R32)","v":"инженер по общестроительным работам  ЗАО «Текнип Рус» Жан Вера, приказ №45-пд от 02.08.2013"},null,null,null,null,null,null,null,null,null,null,null,null,null,"ведущий инженер по надзору за строительством ЗАО «ТЕКНИП РУС» Каверин А.А., приказ № 10-ОД  от 20.05.2011 г."]
[null,null,null,"(должность, фамилия, инициалы, реквизиты документа о представительстве)",null,null,null,null,null,null,null,null,null,null,null,null,null,"инженер по общестроительным работам  ЗАО «Текнип Рус» Жан Вера, приказ №45-пд от 02.08.2013"]
[null,null,null,"Представитель лица, осуществляющего строительства, выполневшего работы, по разбивке осей объекта капитального строительства по местности:"]
[null,null,null,"прораб ЗАО «Ренейссанс Констракшн» Лебедев Е.М., приказ №20 от 25.04.2012 г."]
[null,null,null,"(должность, фамилия, инициалы, реквизиты документа о представительстве)"]
[null,null,null,"составили настоящий акт о том, что произведена в натуре разбивка осей:"]
[null,{"$f":"VLOOKUP(Q2,'ACT LOG'!B3:P1048576,7,0)","v":"колодцев"},null,{"$f":"CONCATENATE(B37,\" \",B39,\" \",B40)","v":"колодцев CW-RCB-818B (N=579.500, E=10.550), CW-RCB-818A (N=579.500, E=2.950) "}]
[null,null,null,"объекта капитального строительства: ",null,null,null,"«Комплекс по производству поливинилхлорида  (ПВХ) мощностью 330 тыс.т./год»"]
[null,{"$f":"IF((VLOOKUP(Q2,'ACT LOG'!B3:P1048576,8,0))=0,\"\",VLOOKUP(Q2,'ACT LOG'!B3:P1048576,8,0))","v":"CW-RCB-818B (N=579.500, E=10.550), CW-RCB-818A (N=579.500, E=2.950)"},null,null,null,null,null,"(наименование объекта капитального строительства)"]
[null,{"$f":"IF((VLOOKUP(Q2,'ACT LOG'!B3:P1048576,9,0))=0,\"\",VLOOKUP(Q2,'ACT LOG'!B3:P1048576,9,0))","v":""},null,"При этом установлено:"]
[null,null,null,"1.Разбивка произведена по данным:"]
[null,null,null,{"$f":"VLOOKUP(Q2,'ACT LOG'!B3:P1048576,12,0)","v":"проект ЗАО \"Текнип Рус\" 9631U-U-DW-1452-8003 rev.4 (5235А-080-000-ГТ-003)"}]
[null,null,null,"(номер, другие реквизиты чертежа, наименование проектной документации)"]
[null,null,null,"2. Закрепление осей произведено:",null,null,null,"металлическими знаками"]
[]
[null,null,null,"3. Обозначение осей, нумерация и расположение точек: соответствует проектной документации"]
[null,null,null,"Разбивка осей объекта капитального строительства на местности соответствует требованиям проектной документации, а также техническим регламентам (нормам и правилам), иным нормативным актам:"]
[null,null,null,{"$f":"VLOOKUP(Q2,'ACT LOG'!B3:P1048576,13,0)","v":"проект ЗАО \"Текнип Рус\" 9631U-U-DW-1452-8003 rev.4 (5235А-080-000-ГТ-003), СНиП 3.01.03-84."}]
[null,null,null,"(номер, другие реквизиты чертежа, наименование проектной документации, сведения о лицах, осуществляющих подготовку раздела проектной документации, наименование, статьи (пункты) технического регламента (норм и правил), иных нормативных правовых актов)"]
[null,null,null,"и выполнены с соблюдением заданной точности построений и измерений."]
[]
[null,null,null,"Дополнительные сведения:"]
[null,null,null,{"$f":"VLOOKUP(Q2,'ACT LOG'!B3:P1048576,11,0)","v":0}]
[]
[]
[null,null,null,"Акт составлен в 2 (двух) экземплярах"]
[]
[null,null,null,"Приложения:"]
[null,null,null,{"$f":"VLOOKUP(Q2,'ACT LOG'!B3:P1048576,14,0)","v":"исполнительная схема разбивки осей колодцев CW-RCB-818B, CW-RCB-818A №RENUUO-SR-1410-ZONE8-DOP-1"}]
[null,null,null,"(схема закрепления осей и др.)"]
[]
[]
[null,null,null,"Представитель застройщика или заказчика:"]
[null,null,null,{"$f":"VLOOKUP(B2,X8:AA25,2,0)","v":"ведущий инженер по общестроительным работам ООО \"РусВинил\""},null,null,null,null,null,null,null,null,{"$f":"VLOOKUP(B2,X8:AA25,3,0)","v":"Докторов И.М."}]
[null,null,null,"(должность, фамилия, инициалы, подпись)"]
[null,null,null,"Представитель лица, осуществляющего строительство:"]
[null,null,null,"прораб ЗАО «Ренейссанс Констракшн» ",null,null,null,null,null,null,null,null,"Лебедев Е.М."]
[null,null,null,"(должность, фамилия, инициалы, подпись)"]
[null,null,null,"Представитель лица, осуществляющего строительство, по вопросам строительного контроля:"]
[null,null,null,"инженер по качеству ЗАО «Ренейссанс Констракшн» ",null,null,null,null,null,null,null,null,"Сон Тунч",null,null,null,"Должность",null,null,null,null,null,"Ф.И.О."]
[null,null,null,"(должность, фамилия, инициалы, подпись)",null,null,null,null,null,null,null,null,null,null,null,null,"инженер по общестроительным работам  ЗАО «Текнип Рус»",null,null,null,null,null,"Жан Вера"]
[null,null,null,"Представитель лица, осуществляющего подготовку проектной документации:",null,null,null,null,null,null,null,null,null,null,null,null,"ведущий инженер по надзору за строительством ЗАО «ТЕКНИП РУС» ",null,null,null,null,null,"Каверин А.А."]
[null,null,null,{"$f":"IF(B5<41488,Q72,Q71)","v":"инженер по общестроительным работам  ЗАО «Текнип Рус»"},null,null,null,null,null,null,null,null,{"$f":"IF(B5<41488,W72,W71)","v":"Жан Вера"}]
[null,null,null,"(должность, фамилия, инициалы, подпись)"]
[null,null,null,"Представитель лица, осуществляющего строительства, выполневшего работы по разбивке осей объекта капитального строительства на местности:"]
[null,null,null,"прораб ЗАО «Ренейссанс Констракшн»",null,null,null,null,null,null,null,null,"Лебедев Е.М."]
[null,null,null,"(должность, фамилия, инициалы, подпись)"]
[]
[null,null,null,"геодезист ЗАО «Ренейссанс Констракшн»",null,null,null,null,null,null,null,null,"Йылмаз Е."]
[null,null,null,"(должность, фамилия, инициалы, подпись)"]

{"sheet":"ACT LOG","index":1,"n_rows":120,"n_cols":16,"rows_kept":120,"cut":false,"hidden":false,"merged":[]}
[" ","S/N","ACT CODE","ACT TYPE","ZONE","AKT NO","AKT DATE","ITEM DEFINITION (строительство которому выполняется разбивка)","WORK ITEM (наименование объекта строительства)","Координаты и оси\n(N=288.600, E=204.700)\nв осях 1-3/A-B","Отметки","Дополнительные сведения","2. Разбивка произведена по данным:","Нормативные акты","Приложения","Проблемы"]
["; ","0","1","2","3","4","5","6","7","8","9","10","11","12","13","14"]
[null,1,null,"АРО",2.6,"11-1/1","2013-08-01","колодцев","CW-RCB-625B (N=129.700, E=422.000), CW-RCB-625A(618A) (N=137.200, E=422.000)",null,null,null,"проект ЗАО \"Текнип Рус\" 5235А-020-000-ГТ-035 (9631U-M-DW-1452-2035 Rev.2), 5235А-060-000-ГТ-014 (9631U-U-DW-1452-6014 Rev.4)",{"$f":"CONCATENATE(Table1[[#This Row],[11]],\", СНиП 3.01.03-84.\")","v":"проект ЗАО \"Текнип Рус\" 5235А-020-000-ГТ-035 (9631U-M-DW-1452-2035 Rev.2), 5235А-060-000-ГТ-014 (9631U-U-DW-1452-6014 Rev.4), СНиП 3.01.03-84."},"исполнительная схема разбивки осей колодцев CW-RCB-625B, CW-RCB-625A(618A) №RENUUO-SR-1410-ZONE2,6-11-1/1"]
[null,2,null,"АРО",2.6,"11-2/1","2013-08-01","колодцев","CW-RCB-624B (N=129.700, E=382.000), CW-RCB-624A(619A) (N=137.300, E=382.000)",null,null,null,"проект ЗАО \"Текнип Рус\" 5235А-020-000-ГТ-034 (9631U-M-DW-1452-2034 Rev.5), 5235А-060-000-ГТ-014 (9631U-U-DW-1452-6014 Rev.4)",{"$f":"CONCATENATE(Table1[[#This Row],[11]],\", СНиП 3.01.03-84.\")","v":"проект ЗАО \"Текнип Рус\" 5235А-020-000-ГТ-034 (9631U-M-DW-1452-2034 Rev.5), 5235А-060-000-ГТ-014 (9631U-U-DW-1452-6014 Rev.4), СНиП 3.01.03-84."},"исполнительная схема разбивки осей колодцев CW-RCB-624B, CW-RCB-624A(619A) №RENUUO-SR-1410-ZONE2,6-11-2/1"]
[null,3,null,"АРО",2.6,"11-3/1","2013-04-17","колодцев","CW-RCB-622B (E=342.000, N=130.700), CW-RCB-622A (623A) (E=342.000, N=137.300)",null,null,null,"проект ЗАО \"Текнип Рус\" 5235А-020-000-ГТ-034 (9631U-M-DW-1452-2034 Rev.5), 5235А-060-000-ГТ-014 (9631U-U-DW-1452-6014 Rev.4)",{"$f":"CONCATENATE(Table1[[#This Row],[11]],\", СНиП 3.01.03-84.\")","v":"проект ЗАО \"Текнип Рус\" 5235А-020-000-ГТ-034 (9631U-M-DW-1452-2034 Rev.5), 5235А-060-000-ГТ-014 (9631U-U-DW-1452-6014 Rev.4), СНиП 3.01.03-84."},"исполнительная схема разбивки осей колодцев CW-RCB-622B, CW-RCB-622A(623A) №RENUUO-SR-1410-ZONE2,6-11-3/1"]
[null,4,null,"АРО",2.6,"11-4/1","2013-04-17","колодцев","CW-RCB-620B (N=130.700, E=309.000), CW-RCB-620A(624A) (N=137.300, E=309.000)",null,null,null,"проект ЗАО \"Текнип Рус\" 5235А-020-000-ГТ-034 (9631U-M-DW-1452-2034 Rev.5), 5235А-060-000-ГТ-014 (9631U-U-DW-1452-6014 Rev.4), 5235А-060-000-ГТ-011 (9631U-U-DW-1452-6011 Rev.4)",{"$f":"CONCATENATE(Table1[[#This Row],[11]],\", СНиП 3.01.03-84.\")","v":"проект ЗАО \"Текнип Рус\" 5235А-020-000-ГТ-034 (9631U-M-DW-1452-2034 Rev.5), 5235А-060-000-ГТ-014 (9631U-U-DW-1452-6014 Rev.4), 5235А-060-000-ГТ-011 (9631U-U-DW-1452-6011 Rev.4), СНиП 3.01.03-84."},"исполнительная схема разбивки осей колодцев CW-RCB-620B, CW-RCB-620A(624A) №RENUUO-SR-1410-ZONE2,6-11-4/1"]
[null,5,null,"АРО",2.6,"11-5/1","2013-08-18","колодцев","CW-RCB-265B (N=137.300, E=225.750), CW-RCB-265A (278A) (N=130.700, E=225.750)",null,null,null,"проект ЗАО \"Текнип Рус\" 5235А-020-000-ГТ-032 (9631U-M-DW-1452-2032 Rev.4), 5235А-060-000-ГТ-005 (9631U-U-DW-1452-6005 Rev.3)",{"$f":"CONCATENATE(Table1[[#This Row],[11]],\", СНиП 3.01.03-84.\")","v":"проект ЗАО \"Текнип Рус\" 5235А-020-000-ГТ-032 (9631U-M-DW-1452-2032 Rev.4), 5235А-060-000-ГТ-005 (9631U-U-DW-1452-6005 Rev.3), СНиП 3.01.03-84."},"исполнительная схема разбивки осей колодцев CW-RCB-265B, CW-RCB-265A (278A) №RENUUO-SR-1410-ZONE2,6-11-5/1"]
[null,6,null,"АРО",2.6,"11-6/1","2013-08-18","колодцев","CW-RCB-266B (N=137.300, E=265.000), CW-RCB-266A(276A) (N=130.700, E=265.000)",null,null,null,"проект ЗАО \"Текнип Рус\" 5235А-020-000-ГТ-032 (9631U-M-DW-1452-2032 Rev.4), 5235А-060-000-ГТ-009 (9631U-U-DW-1452-6009 Rev.4)",{"$f":"CONCATENATE(Table1[[#This Row],[11]],\", СНиП 3.01.03-84.\")","v":"проект ЗАО \"Текнип Рус\" 5235А-020-000-ГТ-032 (9631U-M-DW-1452-2032 Rev.4), 5235А-060-000-ГТ-009 (9631U-U-DW-1452-6009 Rev.4), СНиП 3.01.03-84."},"исполнительная схема разбивки осей колодцев CW-RCB-265B, CW-RCB-266A (276A) №RENUUO-SR-1410-ZONE2,6-11-6/1"]
[null,7,null,"АРО",6.7,"16-4/1","2013-09-17","колодцев ","CW-RCB-703B (N=291.500, E=173.700), CW-RCB-703A (N=291.500, E=180.300)",null,null,null,"проект ЗАО \"Текнип Рус\" 5235А-060-000-ГТ-016 (9631U-U-DW-1452-6016 Rev.3), 5235А-070-000-ГТ-004 (9631U-U-DW-1452-7004 Rev.4)",{"$f":"CONCATENATE(Table1[[#This Row],[11]],\", СНиП 3.01.03-84.\")","v":"проект ЗАО \"Текнип Рус\" 5235А-060-000-ГТ-016 (9631U-U-DW-1452-6016 Rev.3), 5235А-070-000-ГТ-004 (9631U-U-DW-1452-7004 Rev.4), СНиП 3.01.03-84."},"испольнительная схема разбивки осей колодцев  CW-RCB-703B, CW-RCB-703A №RENUUO-SR-1410-ZONE6,7-16-4/1"]
[null,8,null,"АРО",6,"16-6/1","2013-07-08","колодцев ","CW-RCB-813A (E=173.700, N=346.000), CW-RCB-813B (E=180.300, N=346.000)",null,null,null,"проект ЗАО \"Текнип Рус\" 5235А-060-000-ГТ-017 (9631U-U-DW-1452-6017 Rev.3)",{"$f":"CONCATENATE(Table1[[#This Row],[11]],\", СНиП 3.01.03-84.\")","v":"проект ЗАО \"Текнип Рус\" 5235А-060-000-ГТ-017 (9631U-U-DW-1452-6017 Rev.3), СНиП 3.01.03-84."},"испольнительная схема разбивки осей колодцев  CW-RCB-813A, CW-RCB-813B  №RENUUO-SR-1410-ZONE6-16-6/1"]
[null,9,null,"АРО",3,"16-12/1","2013-07-24","колодцев ","CW-RCB-340A (N=460.890, E=174.200), CW-RCB-340B (N=460.890, E=180.300) ",null,null,null,"проект ЗАО \"Текнип Рус\" 5235А-030-000-ГТ-003 (9631U-V-DW-1452-3003 Rev.3)",{"$f":"CONCATENATE(Table1[[#This Row],[11]],\", СНиП 3.01.03-84.\")","v":"проект ЗАО \"Текнип Рус\" 5235А-030-000-ГТ-003 (9631U-V-DW-1452-3003 Rev.3), СНиП 3.01.03-84."},"испольнительная схема разбивки осей колодцев  CW-RCB-340A, CW-RCB-340B  №RENUUO-SR-1410-ZONE3-16-12/1"]
[null,10,null,"АРО",3,"16-14/1","2013-07-08","колодцев ","CW-RCB-342A (N=379.750, E=180.300), CW-RCB-342B (N=379.750, E=174.200) ",null,null,null,"проект ЗАО \"Текнип Рус\" 5235А-030-000-ГТ-014 (9631U-V-DW-1452-3014 Rev.3)",{"$f":"CONCATENATE(Table1[[#This Row],[11]],\", СНиП 3.01.03-84.\")","v":"проект ЗАО \"Текнип Рус\" 5235А-030-000-ГТ-014 (9631U-V-DW-1452-3014 Rev.3), СНиП 3.01.03-84."},"испольнительная схема разбивки осей колодцев  CW-RCB-342A, CW-RCB-342B  №RENUUO-SR-1410-ZONE3-16-14/1"]
[null,11,null,"АРО",3,"16-13/1","2013-07-08","колодцев ","CW-RCB-341A (N=422.480, E=180.300), CW-RCB-341B (N=422.480, E=174.200) ",null,null,null,"проект ЗАО \"Текнип Рус\" 5235А-030-000-ГТ-014 (9631U-V-DW-1452-3014 Rev.4)",{"$f":"CONCATENATE(Table1[[#This Row],[11]],\", СНиП 3.01.03-84.\")","v":"проект ЗАО \"Текнип Рус\" 5235А-030-000-ГТ-014 (9631U-V-DW-1452-3014 Rev.4), СНиП 3.01.03-84."},"испольнительная схема разбивки осей колодцев  CW-RCB-341A, CW-RCB-341B  №RENUUO-SR-1410-ZONE3-16-13/1"]
[null,12,null,"АРО",6.7,"16-5/1","2013-07-15","колодцев ","CW-RCB-705B (N=248.500, E=173.700), CW-RCB-705A (N=248.500, E=180.300)",null,null,null,"проект ЗАО \"Текнип Рус\" 5235А-070-000-ГТ-004 (9631U-U-DW-1452-7004 Rev.4), 5235А-060-000-ГТ-016 (9631U-U-DW-1452-6016 Rev.3)",{"$f":"CONCATENATE(Table1[[#This Row],[11]],\", СНиП 3.01.03-84.\")","v":"проект ЗАО \"Текнип Рус\" 5235А-070-000-ГТ-004 (9631U-U-DW-1452-7004 Rev.4), 5235А-060-000-ГТ-016 (9631U-U-DW-1452-6016 Rev.3), СНиП 3.01.03-84."},"испольнительная схема разбивки осей колодцев  CW-RCB-705B, CW-RCB-705A №RENUUO-SR-1410-ZONE6,7-16-5/1"]
[null,13,null,"АРО",6.7,"16-3/1","2013-07-15","колодцев ","CW-RCB-707B (N=214.000, E=173.700), CW-RCB-707A (N=214.000, E=180.300)",null,null,null,"проект ЗАО \"Текнип Рус\" 5235А-070-000-ГТ-004 (9631U-U-DW-1452-7004 Rev.4), 5235А-060-000-ГТ-016 (9631U-U-DW-1452-6016 Rev.3)",{"$f":"CONCATENATE(Table1[[#This Row],[11]],\", СНиП 3.01.03-84.\")","v":"проект ЗАО \"Текнип Рус\" 5235А-070-000-ГТ-004 (9631U-U-DW-1452-7004 Rev.4), 5235А-060-000-ГТ-016 (9631U-U-DW-1452-6016 Rev.3), СНиП 3.01.03-84."},"испольнительная схема разбивки осей колодцев  CW-RCB-707B, CW-RCB-707A №RENUUO-SR-1410-ZONE6,7-16-3/1"]
[null,14,null,"АРО",6.7,"16-2/1","2013-07-15","колодцев ","CW-RCB-719A (N=164.050, E=173.700), CW-RCB-724A (N=164.056, E=180.300)",null,null,null,"проект ЗАО \"Текнип Рус\" 5235А-070-000-ГТ-006 (9631U-U-DW-1452-7006 Rev.4), 5235А-060-000-ГТ-015 (9631U-U-DW-1452-6015 Rev.4)",{"$f":"CONCATENATE(Table1[[#This Row],[11]],\", СНиП 3.01.03-84.\")","v":"проект ЗАО \"Текнип Рус\" 5235А-070-000-ГТ-006 (9631U-U-DW-1452-7006 Rev.4), 5235А-060-000-ГТ-015 (9631U-U-DW-1452-6015 Rev.4), СНиП 3.01.03-84."},"испольнительная схема разбивки осей колодцев  CW-RCB-719A, CW-RCB-724A №RENUUO-SR-1410-ZONE6,7-16-2/1"]
[null,15,null,"АРО",1,"6-1/1","2013-08-09","колодцев","CW-RCB-154B (N=445.500, E=576.200), CW-RCB-154A(054A) (N=445.500, E=571.450)",null,null,null,"проект ЗАО \"Текнип Рус\" 5235А-010-000-ГТ-016 (9631U-V-DW-1452-1016 Rev.3), 5235А-010-000-ГТ-017 (9631U-V-DW-1452-1017 Rev.4)",{"$f":"CONCATENATE(Table1[[#This Row],[11]],\", СНиП 3.01.03-84.\")","v":"проект ЗАО \"Текнип Рус\" 5235А-010-000-ГТ-016 (9631U-V-DW-1452-1016 Rev.3), 5235А-010-000-ГТ-017 (9631U-V-DW-1452-1017 Rev.4), СНиП 3.01.03-84."},"исполнительная схема разбивки осей колодцев CW-RCB-154B, CW-RCB-154A(054A) №RENUUO-SR-1410-ZONE1-6-1/1"]
[null,16,null,"АРО",1,"6-2/1","2013-08-09","колодцев","CW-RCB-156A (N=404.500, E=571.650), CW-RCB-156B (N=404.500, E=576.200)",null,null,null,"проект ЗАО \"Текнип Рус\" 5235А-010-000-ГТ-020 (9631U-V-DW-1452-1020 Rev.3), 5235А-010-000-ГТ-019 (9631U-V-DW-1452-1019 Rev.5)",{"$f":"CONCATENATE(Table1[[#This Row],[11]],\", СНиП 3.01.03-84.\")","v":"проект ЗАО \"Текнип Рус\" 5235А-010-000-ГТ-020 (9631U-V-DW-1452-1020 Rev.3), 5235А-010-000-ГТ-019 (9631U-V-DW-1452-1019 Rev.5), СНиП 3.01.03-84."},"исполнительная схема разбивки осей колодцев CW-RCB-154B, CW-RCB-154A №RENUUO-SR-1410-ZONE1-6-2/1"]
[null,17,null,"АРО",1,"6-3/1","2013-10-16","колодца","CW-RCB-157A","(N=404.500, E=598.622)",null,null,"проект ЗАО \"Текнип Рус\" 5235А-010-000-ГТ-020 (9631U-V-DW-1452-1020 Rev.3)",{"$f":"CONCATENATE(Table1[[#This Row],[11]],\", СНиП 3.01.03-84.\")","v":"проект ЗАО \"Текнип Рус\" 5235А-010-000-ГТ-020 (9631U-V-DW-1452-1020 Rev.3), СНиП 3.01.03-84."},"исполнительная схема разбивки осей колодца CW-RCB-157A №RENUUO-SR-1410-ZONE1-6-3/1"]
[null,18,null,"АРО",3,"17-5/1","2013-10-19","колодца","CW-RCB-327A","(N=368.600, E=399.450)",null,null,"проект ЗАО \"Текнип Рус\" 5235А-030-000-ГТ-023 (9631U-V-DW-1452-3023 Rev.3)",{"$f":"CONCATENATE(Table1[[#This Row],[11]],\", СНиП 3.01.03-84.\")","v":"проект ЗАО \"Текнип Рус\" 5235А-030-000-ГТ-023 (9631U-V-DW-1452-3023 Rev.3), СНиП 3.01.03-84."},"исполнительная схема разбивка осей колодца CW-RCB-327A № RENUUO-SR-1410-ZONE3-17-5/1"]
[null,19,null,"АРО",3,"17-6/1","2013-10-19","колодца","CW-RCB-326A","(N=340.000, E=399.450)",null,null,"проект ЗАО \"Текнип Рус\" 5235А-030-000-ГТ-023 (9631U-V-DW-1452-3023 Rev.3)",{"$f":"CONCATENATE(Table1[[#This Row],[11]],\", СНиП 3.01.03-84.\")","v":"проект ЗАО \"Текнип Рус\" 5235А-030-000-ГТ-023 (9631U-V-DW-1452-3023 Rev.3), СНиП 3.01.03-84."},"исполнительная схема разбивка осей колодца CW-RCB-326A № RENUUO-SR-1410-ZONE3-17-6/1"]
[null,20,null,"АРО",3,"17-7/1","2013-03-29","колодца","CW-RCB-336A","(N=312.775, E=481.000)",null,null,"проект ЗАО \"Текнип Рус\" 5235А-030-000-ГТ-025 (9631U-V-DW-1452-3025 Rev.4)",{"$f":"CONCATENATE(Table1[[#This Row],[11]],\", СНиП 3.01.03-84.\")","v":"проект ЗАО \"Текнип Рус\" 5235А-030-000-ГТ-025 (9631U-V-DW-1452-3025 Rev.4), СНиП 3.01.03-84."},"исполнительная схема разбивка осей колодца CW-RCB-336A № RENUUO-SR-1410-ZONE3-17-7/1"]
[null,21,null,"АРО",2.2999999999999998,"17-8/1","2013-02-16","колодца","CW-RCB-332A","(N=308.900, E=439.500)",null,null,"проект ЗАО \"Текнип Рус\" 5235А-030-000-ГТ-024 (9631U-V-DW-1452-3024 Rev.4), 5235А-020-000-ГТ-012 (9631U-M-DW-1452-2012 Rev.3)",{"$f":"CONCATENATE(Table1[[#This Row],[11]],\", СНиП 3.01.03-84.\")","v":"проект ЗАО \"Текнип Рус\" 5235А-030-000-ГТ-024 (9631U-V-DW-1452-3024 Rev.4), 5235А-020-000-ГТ-012 (9631U-M-DW-1452-2012 Rev.3), СНиП 3.01.03-84."},"исполнительная схема разбивка осей колодца CW-RCB-332A № RENUUO-SR-1410-ZONE2,3-17-8/1"]
[null,22,null,"АРО",1.2,"5-1/1","2013-08-07","колодцев","CW-RCB-101B (N=382.700, E=554.300), CW-RCB-101A (N=378.750, E=554.300)",null,null,null,"проект ЗАО \"Текнип Рус\" 5235А-010-000-ГТ-019 (9631U-V-DW-1452-1019 Rev.5), 5235А-020-000-ГТ-014 (9631U-M-DW-1452-2014 Rev.2)",{"$f":"CONCATENATE(Table1[[#This Row],[11]],\", СНиП 3.01.03-84.\")","v":"проект ЗАО \"Текнип Рус\" 5235А-010-000-ГТ-019 (9631U-V-DW-1452-1019 Rev.5), 5235А-020-000-ГТ-014 (9631U-M-DW-1452-2014 Rev.2), СНиП 3.01.03-84."},"исполнительная схема разбивки осей колодцев CW-RCB-101B, CW-RCB-101A №RENUUO-SR-1410-ZONE1,2-5-1/1"]
[null,23,null,"АРО",1.2,"5-2/1","2013-08-07","колодцев","CW-RCB-102B (N=382.700, E=597.000), CW-RCB-102A (N=378.450, E=597.000)",null,null,null,"проект ЗАО \"Текнип Рус\" 5235А-020-000-ГТ-015 (9631U-M-DW-1452-2015 Rev.3), 5235А-010-000-ГТ-020 (9631U-V-DW-1452-1020 Rev.5)",{"$f":"CONCATENATE(Table1[[#This Row],[11]],\", СНиП 3.01.03-84.\")","v":"проект ЗАО \"Текнип Рус\" 5235А-020-000-ГТ-015 (9631U-M-DW-1452-2015 Rev.3), 5235А-010-000-ГТ-020 (9631U-V-DW-1452-1020 Rev.5), СНиП 3.01.03-84."},"исполнительная схема разбивки осей колодцев CW-RCB-102B, CW-RCB-102A №RENUUO-SR-1410-ZONE1,2-5-2/1"]
[null,24,null,"АРО",1.2,"5-3/1","2013-08-07","колодцев","CW-RCB-103B (N=382.700, E=633.000), CW-RCB-103A (N=378.450, E=633.000)",null,null,null,"проект ЗАО \"Текнип Рус\" 5235А-010-000-ГТ-020 (9631U-V-DW-1452-1020 Rev.5), 5235А-020-000-ГТ-015 (9631U-M-DW-1452-2015 Rev.3)",{"$f":"CONCATENATE(Table1[[#This Row],[11]],\", СНиП 3.01.03-84.\")","v":"проект ЗАО \"Текнип Рус\" 5235А-010-000-ГТ-020 (9631U-V-DW-1452-1020 Rev.5), 5235А-020-000-ГТ-015 (9631U-M-DW-1452-2015 Rev.3), СНиП 3.01.03-84."},"исполнительная схема разбивки осей колодцев CW-RCB-103B, CW-RCB-103A №RENUUO-SR-1410-ZONE1,2-5-3/1"]
[null,25,null,"АРО",1.2,"5-4/1","2013-10-05","колодцев","CW-RCB-104B (N=382.700, E=676.000), CW-RCB-104A (N=378.450, E=676.200)",null,null,null,"проект ЗАО \"Текнип Рус\" 5235А-010-000-ГТ-021 (9631U-V-DW-1452-1021 Rev.3), 5235А-020-000-ГТ-015 (9631U-M-DW-1452-2015 Rev.3)",{"$f":"CONCATENATE(Table1[[#This Row],[11]],\", СНиП 3.01.03-84.\")","v":"проект ЗАО \"Текнип Рус\" 5235А-010-000-ГТ-021 (9631U-V-DW-1452-1021 Rev.3), 5235А-020-000-ГТ-015 (9631U-M-DW-1452-2015 Rev.3), СНиП 3.01.03-84."},"исполнительная схема разбивки осей колодцев CW-RCB-104B, CW-RCB-104A №RENUUO-SR-1410-ZONE1,2-5-4/1"]
[null,26,null,"АРО",1.2,"5-5/1","2013-10-05","колодцев","CW-RCB-105B (N=383.500, E=704.500), CW-RCB-105A (N=377.950, E=704.500)",null,null,null,"проект ЗАО \"Текнип Рус\" 5235А-010-000-ГТ-024 (9631U-V-DW-1452-1024 Rev.2), 5235А-020-000-ГТ-016 (9631U-M-DW-1452-2016 Rev.3)",{"$f":"CONCATENATE(Table1[[#This Row],[11]],\", СНиП 3.01.03-84.\")","v":"проект ЗАО \"Текнип Рус\" 5235А-010-000-ГТ-024 (9631U-V-DW-1452-1024 Rev.2), 5235А-020-000-ГТ-016 (9631U-M-DW-1452-2016 Rev.3), СНиП 3.01.03-84."},"исполнительная схема разбивки осей колодцев CW-RCB-105B, CW-RCB-105A №RENUUO-SR-1410-ZONE1,2-5-5/1"]
[null,27,null,"АРО",1,"3-11/1","2013-09-30","колодцев","CW-RCB-106B (N=405.000, E=726.650), CW-RCB-106A (N=405.000, E=735.200)",null,null,null,"проект ЗАО \"Текнип Рус\" 5235А-010-000-ГТ-024 (9631U-V-DW-1452-1024 Rev.2), 5235А-010-930-TX1.И (U1A-GU001-0006B_01 Rev.0),  5235А-010-930-TX1.И (U1A-GU001-0006A_01 Rev.0),9631U-G-STC-1490-0001 Rev.7",{"$f":"CONCATENATE(Table1[[#This Row],[11]],\", СНиП 3.01.03-84.\")","v":"проект ЗАО \"Текнип Рус\" 5235А-010-000-ГТ-024 (9631U-V-DW-1452-1024 Rev.2), 5235А-010-930-TX1.И (U1A-GU001-0006B_01 Rev.0),  5235А-010-930-TX1.И (U1A-GU001-0006A_01 Rev.0),9631U-G-STC-1490-0001 Rev.7, СНиП 3.01.03-84."},"исполнительная схема разбивки осей колодцев CW-RCB-106B, CW-RCB-106A №RENUUO-SR-1410-ZONE1-3-11/1"]
[null,28,null,"АРО",8,"DOP-1","2013-10-01","колодцев","CW-RCB-818B (N=579.500, E=10.550), CW-RCB-818A (N=579.500, E=2.950)",null,null,null,"проект ЗАО \"Текнип Рус\" 9631U-U-DW-1452-8003 rev.4 (5235А-080-000-ГТ-003)",{"$f":"CONCATENATE(Table1[[#This Row],[11]],\", СНиП 3.01.03-84.\")","v":"проект ЗАО \"Текнип Рус\" 9631U-U-DW-1452-8003 rev.4 (5235А-080-000-ГТ-003), СНиП 3.01.03-84."},"исполнительная схема разбивки осей колодцев CW-RCB-818B, CW-RCB-818A №RENUUO-SR-1410-ZONE8-DOP-1"]
[null,29,null,"АРО",null,null,null,null,null,null,null,null,null,{"$f":"CONCATENATE(Table1[[#This Row],[11]],\", СНиП 3.01.03-84.\")","v":", СНиП 3.01.03-84."}]
[null,30,null,"АРО",null,null,null,null,null,null,null,null,null,{"$f":"CONCATENATE(Table1[[#This Row],[11]],\", СНиП 3.01.03-84.\")","v":", СНиП 3.01.03-84."}]
[null,31,null,"АРО",null,null,null,null,null,null,null,null,null,{"$f":"CONCATENATE(Table1[[#This Row],[11]],\", СНиП 3.01.03-84.\")","v":", СНиП 3.01.03-84."}]
[null,32,null,"АРО",null,null,null,null,null,null,null,null,null,{"$f":"CONCATENATE(Table1[[#This Row],[11]],\", СНиП 3.01.03-84.\")","v":", СНиП 3.01.03-84."}]
[null,33,null,"АРО",null,null,null,null,null,null,null,null,null,{"$f":"CONCATENATE(Table1[[#This Row],[11]],\", СНиП 3.01.03-84.\")","v":", СНиП 3.01.03-84."}]
[null,34,null,"АРО",null,null,null,null,null,null,null,null,null,{"$f":"CONCATENATE(Table1[[#This Row],[11]],\", СНиП 3.01.03-84.\")","v":", СНиП 3.01.03-84."}]
[null,35,null,"АРО",null,null,null,null,null,null,null,null,null,{"$f":"CONCATENATE(Table1[[#This Row],[11]],\", СНиП 3.01.03-84.\")","v":", СНиП 3.01.03-84."}]
[null,36,null,"АРО",null,null,null,null,null,null,null,null,null,{"$f":"CONCATENATE(Table1[[#This Row],[11]],\", СНиП 3.01.03-84.\")","v":", СНиП 3.01.03-84."}]
[null,37,null,"АРО",null,null,null,null,null,null,null,null,null,{"$f":"CONCATENATE(Table1[[#This Row],[11]],\", СНиП 3.01.03-84.\")","v":", СНиП 3.01.03-84."}]
[null,38,null,"АРО",null,null,null,null,null,null,null,null,null,{"$f":"CONCATENATE(Table1[[#This Row],[11]],\", СНиП 3.01.03-84.\")","v":", СНиП 3.01.03-84."}]
[null,39,null,"АРО",null,null,null,null,null,null,null,null,null,{"$f":"CONCATENATE(Table1[[#This Row],[11]],\", СНиП 3.01.03-84.\")","v":", СНиП 3.01.03-84."}]
[null,40,null,"АРО",null,null,null,null,null,null,null,null,null,{"$f":"CONCATENATE(Table1[[#This Row],[11]],\", СНиП 3.01.03-84.\")","v":", СНиП 3.01.03-84."}]
[null,41,null,"АРО",null,null,null,null,null,null,null,null,null,{"$f":"CONCATENATE(Table1[[#This Row],[11]],\", СНиП 3.01.03-84.\")","v":", СНиП 3.01.03-84."}]
[null,42,null,"АРО",null,null,null,null,null,null,null,null,null,{"$f":"CONCATENATE(Table1[[#This Row],[11]],\", СНиП 3.01.03-84.\")","v":", СНиП 3.01.03-84."}]
[null,43,null,"АРО",null,null,null,null,null,null,null,null,null,{"$f":"CONCATENATE(Table1[[#This Row],[11]],\", СНиП 3.01.03-84.\")","v":", СНиП 3.01.03-84."}]
[null,44,null,"АРО",null,null,null,null,null,null,null,null,null,{"$f":"CONCATENATE(Table1[[#This Row],[11]],\", СНиП 3.01.03-84.\")","v":", СНиП 3.01.03-84."}]
[null,45,null,"АРО",null,null,null,null,null,null,null,null,null,{"$f":"CONCATENATE(Table1[[#This Row],[11]],\", СНиП 3.01.03-84.\")","v":", СНиП 3.01.03-84."}]
[null,46,null,"АРО",null,null,null,null,null,null,null,null,null,{"$f":"CONCATENATE(Table1[[#This Row],[11]],\", СНиП 3.01.03-84.\")","v":", СНиП 3.01.03-84."}]
[null,47,null,"АРО",null,null,null,null,null,null,null,null,null,{"$f":"CONCATENATE(Table1[[#This Row],[11]],\", СНиП 3.01.03-84.\")","v":", СНиП 3.01.03-84."}]
[null,48,null,"АРО",null,null,null,null,null,null,null,null,null,{"$f":"CONCATENATE(Table1[[#This Row],[11]],\", СНиП 3.01.03-84.\")","v":", СНиП 3.01.03-84."}]
[null,49,null,"АРО",null,null,null,null,null,null,null,null,null,{"$f":"CONCATENATE(Table1[[#This Row],[11]],\", СНиП 3.01.03-84.\")","v":", СНиП 3.01.03-84."}]
[null,50,null,"АРО",null,null,null,null,null,null,null,null,null,{"$f":"CONCATENATE(Table1[[#This Row],[11]],\", СНиП 3.01.03-84.\")","v":", СНиП 3.01.03-84."}]
[null,51,null,"АРО",null,null,null,null,null,null,null,null,null,{"$f":"CONCATENATE(Table1[[#This Row],[11]],\", СНиП 3.01.03-84.\")","v":", СНиП 3.01.03-84."}]
[null,52,null,"АРО",null,null,null,null,null,null,null,null,null,{"$f":"CONCATENATE(Table1[[#This Row],[11]],\", СНиП 3.01.03-84.\")","v":", СНиП 3.01.03-84."}]
[null,53,null,"АРО",null,null,null,null,null,null,null,null,null,{"$f":"CONCATENATE(Table1[[#This Row],[11]],\", СНиП 3.01.03-84.\")","v":", СНиП 3.01.03-84."}]
[null,54,null,"АРО",null,null,null,null,null,null,null,null,null,{"$f":"CONCATENATE(Table1[[#This Row],[11]],\", СНиП 3.01.03-84.\")","v":", СНиП 3.01.03-84."}]
[null,55,null,"АРО",null,null,null,null,null,null,null,null,null,{"$f":"CONCATENATE(Table1[[#This Row],[11]],\", СНиП 3.01.03-84.\")","v":", СНиП 3.01.03-84."}]
[null,56,null,"АРО",null,null,null,null,null,null,null,null,null,{"$f":"CONCATENATE(Table1[[#This Row],[11]],\", СНиП 3.01.03-84.\")","v":", СНиП 3.01.03-84."}]
[null,57,null,"АРО",null,null,null,null,null,null,null,null,null,{"$f":"CONCATENATE(Table1[[#This Row],[11]],\", СНиП 3.01.03-84.\")","v":", СНиП 3.01.03-84."}]
[null,58,null,"АРО",null,null,null,null,null,null,null,null,null,{"$f":"CONCATENATE(Table1[[#This Row],[11]],\", СНиП 3.01.03-84.\")","v":", СНиП 3.01.03-84."}]
[null,59,null,"АРО",null,null,null,null,null,null,null,null,null,{"$f":"CONCATENATE(Table1[[#This Row],[11]],\", СНиП 3.01.03-84.\")","v":", СНиП 3.01.03-84."}]
[null,60,null,"АРО",null,null,null,null,null,null,null,null,null,{"$f":"CONCATENATE(Table1[[#This Row],[11]],\", СНиП 3.01.03-84.\")","v":", СНиП 3.01.03-84."}]
[null,61,null,"АРО",null,null,null,null,null,null,null,null,null,{"$f":"CONCATENATE(Table1[[#This Row],[11]],\", СНиП 3.01.03-84.\")","v":", СНиП 3.01.03-84."}]
[null,62,null,"АРО",null,null,null,null,null,null,null,null,null,{"$f":"CONCATENATE(Table1[[#This Row],[11]],\", СНиП 3.01.03-84.\")","v":", СНиП 3.01.03-84."}]
[null,63,null,"АРО",null,null,null,null,null,null,null,null,null,{"$f":"CONCATENATE(Table1[[#This Row],[11]],\", СНиП 3.01.03-84.\")","v":", СНиП 3.01.03-84."}]
[null,64,null,"АРО",null,null,null,null,null,null,null,null,null,{"$f":"CONCATENATE(Table1[[#This Row],[11]],\", СНиП 3.01.03-84.\")","v":", СНиП 3.01.03-84."}]
[null,65,null,"АРО",null,null,null,null,null,null,null,null,null,{"$f":"CONCATENATE(Table1[[#This Row],[11]],\", СНиП 3.01.03-84.\")","v":", СНиП 3.01.03-84."}]
[null,66,null,"АРО",null,null,null,null,null,null,null,null,null,{"$f":"CONCATENATE(Table1[[#This Row],[11]],\", СНиП 3.01.03-84.\")","v":", СНиП 3.01.03-84."}]
[null,67,null,"АРО",null,null,null,null,null,null,null,null,null,{"$f":"CONCATENATE(Table1[[#This Row],[11]],\", СНиП 3.01.03-84.\")","v":", СНиП 3.01.03-84."}]
[null,68,null,"АРО",null,null,null,null,null,null,null,null,null,{"$f":"CONCATENATE(Table1[[#This Row],[11]],\", СНиП 3.01.03-84.\")","v":", СНиП 3.01.03-84."}]
[null,69,null,"АРО",null,null,null,null,null,null,null,null,null,{"$f":"CONCATENATE(Table1[[#This Row],[11]],\", СНиП 3.01.03-84.\")","v":", СНиП 3.01.03-84."}]
[null,70,null,"АРО",null,null,null,null,null,null,null,null,null,{"$f":"CONCATENATE(Table1[[#This Row],[11]],\", СНиП 3.01.03-84.\")","v":", СНиП 3.01.03-84."}]
[null,71,null,"АРО",null,null,null,null,null,null,null,null,null,{"$f":"CONCATENATE(Table1[[#This Row],[11]],\", СНиП 3.01.03-84.\")","v":", СНиП 3.01.03-84."}]
[null,72,null,"АРО",null,null,null,null,null,null,null,null,null,{"$f":"CONCATENATE(Table1[[#This Row],[11]],\", СНиП 3.01.03-84.\")","v":", СНиП 3.01.03-84."}]
[null,73,null,"АРО",null,null,null,null,null,null,null,null,null,{"$f":"CONCATENATE(Table1[[#This Row],[11]],\", СНиП 3.01.03-84.\")","v":", СНиП 3.01.03-84."}]
[null,74,null,"АРО",null,null,null,null,null,null,null,null,null,{"$f":"CONCATENATE(Table1[[#This Row],[11]],\", СНиП 3.01.03-84.\")","v":", СНиП 3.01.03-84."}]
[null,75,null,"АРО",null,null,null,null,null,null,null,null,null,{"$f":"CONCATENATE(Table1[[#This Row],[11]],\", СНиП 3.01.03-84.\")","v":", СНиП 3.01.03-84."}]
[null,76,null,"АРО",null,null,null,null,null,null,null,null,null,{"$f":"CONCATENATE(Table1[[#This Row],[11]],\", СНиП 3.01.03-84.\")","v":", СНиП 3.01.03-84."}]
[null,77,null,"АРО",null,null,null,null,null,null,null,null,null,{"$f":"CONCATENATE(Table1[[#This Row],[11]],\", СНиП 3.01.03-84.\")","v":", СНиП 3.01.03-84."}]
[null,78,null,"АРО",null,null,null,null,null,null,null,null,null,{"$f":"CONCATENATE(Table1[[#This Row],[11]],\", СНиП 3.01.03-84.\")","v":", СНиП 3.01.03-84."}]
[null,79,null,"АРО",null,null,null,null,null,null,null,null,null,{"$f":"CONCATENATE(Table1[[#This Row],[11]],\", СНиП 3.01.03-84.\")","v":", СНиП 3.01.03-84."}]
[null,80,null,"АРО",null,null,null,null,null,null,null,null,null,{"$f":"CONCATENATE(Table1[[#This Row],[11]],\", СНиП 3.01.03-84.\")","v":", СНиП 3.01.03-84."}]
[null,81,null,"АРО",null,null,null,null,null,null,null,null,null,{"$f":"CONCATENATE(Table1[[#This Row],[11]],\", СНиП 3.01.03-84.\")","v":", СНиП 3.01.03-84."}]
[null,82,null,"АРО",null,null,null,null,null,null,null,null,null,{"$f":"CONCATENATE(Table1[[#This Row],[11]],\", СНиП 3.01.03-84.\")","v":", СНиП 3.01.03-84."}]
[null,83,null,"АРО",null,null,null,null,null,null,null,null,null,{"$f":"CONCATENATE(Table1[[#This Row],[11]],\", СНиП 3.01.03-84.\")","v":", СНиП 3.01.03-84."}]
[null,84,null,"АРО",null,null,null,null,null,null,null,null,null,{"$f":"CONCATENATE(Table1[[#This Row],[11]],\", СНиП 3.01.03-84.\")","v":", СНиП 3.01.03-84."}]
[null,85,null,"АРО",null,null,null,null,null,null,null,null,null,{"$f":"CONCATENATE(Table1[[#This Row],[11]],\", СНиП 3.01.03-84.\")","v":", СНиП 3.01.03-84."}]
[null,86,null,"АРО",null,null,null,null,null,null,null,null,null,{"$f":"CONCATENATE(Table1[[#This Row],[11]],\", СНиП 3.01.03-84.\")","v":", СНиП 3.01.03-84."}]
[null,87,null,"АРО",null,null,null,null,null,null,null,null,null,{"$f":"CONCATENATE(Table1[[#This Row],[11]],\", СНиП 3.01.03-84.\")","v":", СНиП 3.01.03-84."}]
[null,88,null,"АРО",null,null,null,null,null,null,null,null,null,{"$f":"CONCATENATE(Table1[[#This Row],[11]],\", СНиП 3.01.03-84.\")","v":", СНиП 3.01.03-84."}]
[null,89,null,"АРО",null,null,null,null,null,null,null,null,null,{"$f":"CONCATENATE(Table1[[#This Row],[11]],\", СНиП 3.01.03-84.\")","v":", СНиП 3.01.03-84."}]
[null,90,null,"АРО",null,null,null,null,null,null,null,null,null,{"$f":"CONCATENATE(Table1[[#This Row],[11]],\", СНиП 3.01.03-84.\")","v":", СНиП 3.01.03-84."}]
[null,91,null,"АРО",null,null,null,null,null,null,null,null,null,{"$f":"CONCATENATE(Table1[[#This Row],[11]],\", СНиП 3.01.03-84.\")","v":", СНиП 3.01.03-84."}]
[null,92,null,"АРО",null,null,null,null,null,null,null,null,null,{"$f":"CONCATENATE(Table1[[#This Row],[11]],\", СНиП 3.01.03-84.\")","v":", СНиП 3.01.03-84."}]
[null,93,null,"АРО",null,null,null,null,null,null,null,null,null,{"$f":"CONCATENATE(Table1[[#This Row],[11]],\", СНиП 3.01.03-84.\")","v":", СНиП 3.01.03-84."}]
[null,94,null,"АРО",null,null,null,null,null,null,null,null,null,{"$f":"CONCATENATE(Table1[[#This Row],[11]],\", СНиП 3.01.03-84.\")","v":", СНиП 3.01.03-84."}]
[null,95,null,"АРО",null,null,null,null,null,null,null,null,null,{"$f":"CONCATENATE(Table1[[#This Row],[11]],\", СНиП 3.01.03-84.\")","v":", СНиП 3.01.03-84."}]
[null,96,null,"АРО",null,null,null,null,null,null,null,null,null,{"$f":"CONCATENATE(Table1[[#This Row],[11]],\", СНиП 3.01.03-84.\")","v":", СНиП 3.01.03-84."}]
[null,97,null,"АРО",null,null,null,null,null,null,null,null,null,{"$f":"CONCATENATE(Table1[[#This Row],[11]],\", СНиП 3.01.03-84.\")","v":", СНиП 3.01.03-84."}]
[null,98,null,"АРО",null,null,null,null,null,null,null,null,null,{"$f":"CONCATENATE(Table1[[#This Row],[11]],\", СНиП 3.01.03-84.\")","v":", СНиП 3.01.03-84."}]
[null,99,null,"АРО",null,null,null,null,null,null,null,null,null,{"$f":"CONCATENATE(Table1[[#This Row],[11]],\", СНиП 3.01.03-84.\")","v":", СНиП 3.01.03-84."}]
[null,100,null,"АРО",null,null,null,null,null,null,null,null,null,{"$f":"CONCATENATE(Table1[[#This Row],[11]],\", СНиП 3.01.03-84.\")","v":", СНиП 3.01.03-84."}]
[null,101,null,"АРО",null,null,null,null,null,null,null,null,null,{"$f":"CONCATENATE(Table1[[#This Row],[11]],\", СНиП 3.01.03-84.\")","v":", СНиП 3.01.03-84."}]
[null,102,null,"АРО",null,null,null,null,null,null,null,null,null,{"$f":"CONCATENATE(Table1[[#This Row],[11]],\", СНиП 3.01.03-84.\")","v":", СНиП 3.01.03-84."}]
[null,103,null,"АРО",null,null,null,null,null,null,null,null,null,{"$f":"CONCATENATE(Table1[[#This Row],[11]],\", СНиП 3.01.03-84.\")","v":", СНиП 3.01.03-84."}]
[null,104,null,"АРО",null,null,null,null,null,null,null,null,null,{"$f":"CONCATENATE(Table1[[#This Row],[11]],\", СНиП 3.01.03-84.\")","v":", СНиП 3.01.03-84."}]
[null,105,null,"АРО",null,null,null,null,null,null,null,null,null,{"$f":"CONCATENATE(Table1[[#This Row],[11]],\", СНиП 3.01.03-84.\")","v":", СНиП 3.01.03-84."}]
[null,106,null,"АРО",null,null,null,null,null,null,null,null,null,{"$f":"CONCATENATE(Table1[[#This Row],[11]],\", СНиП 3.01.03-84.\")","v":", СНиП 3.01.03-84."}]
[null,107,null,"АРО",null,null,null,null,null,null,null,null,null,{"$f":"CONCATENATE(Table1[[#This Row],[11]],\", СНиП 3.01.03-84.\")","v":", СНиП 3.01.03-84."}]
[null,108,null,"АРО",null,null,null,null,null,null,null,null,null,{"$f":"CONCATENATE(Table1[[#This Row],[11]],\", СНиП 3.01.03-84.\")","v":", СНиП 3.01.03-84."}]
[null,109,null,"АРО",null,null,null,null,null,null,null,null,null,{"$f":"CONCATENATE(Table1[[#This Row],[11]],\", СНиП 3.01.03-84.\")","v":", СНиП 3.01.03-84."}]
[null,110,null,"АРО",null,null,null,null,null,null,null,null,null,{"$f":"CONCATENATE(Table1[[#This Row],[11]],\", СНиП 3.01.03-84.\")","v":", СНиП 3.01.03-84."}]
[null,111,null,"АРО",null,null,null,null,null,null,null,null,null,{"$f":"CONCATENATE(Table1[[#This Row],[11]],\", СНиП 3.01.03-84.\")","v":", СНиП 3.01.03-84."}]
[null,112,null,"АРО",null,null,null,null,null,null,null,null,null,{"$f":"CONCATENATE(Table1[[#This Row],[11]],\", СНиП 3.01.03-84.\")","v":", СНиП 3.01.03-84."}]
[null,113,null,"АРО",null,null,null,null,null,null,null,null,null,{"$f":"CONCATENATE(Table1[[#This Row],[11]],\", СНиП 3.01.03-84.\")","v":", СНиП 3.01.03-84."}]
[null,114,null,"АРО",null,null,null,null,null,null,null,null,null,{"$f":"CONCATENATE(Table1[[#This Row],[11]],\", СНиП 3.01.03-84.\")","v":", СНиП 3.01.03-84."}]
[null,115,null,"АРО",null,null,null,null,null,null,null,null,null,{"$f":"CONCATENATE(Table1[[#This Row],[11]],\", СНиП 3.01.03-84.\")","v":", СНиП 3.01.03-84."}]
[null,116,null,"АРО",null,null,null,null,null,null,null,null,null,{"$f":"CONCATENATE(Table1[[#This Row],[11]],\", СНиП 3.01.03-84.\")","v":", СНиП 3.01.03-84."}]
[null,117,null,"АРО",null,null,null,null,null,null,null,null,null,{"$f":"CONCATENATE(Table1[[#This Row],[11]],\", СНиП 3.01.03-84.\")","v":", СНиП 3.01.03-84."}]
[null,118,null,"АРО",null,null,null,null,null,null,null,null,null,{"$f":"CONCATENATE(Table1[[#This Row],[11]],\", СНиП 3.01.03-84.\")","v":", СНиП 3.01.03-84."}]